Cogmind - Beta 16.1 @@@ ROGUE MODE // 2026.02.21 @ 17:43:20 Player: Rocket Result: Self-destructed Performance ------------- Evolutions (2) 1000 Regions Visited (3) 600 Robots Destroyed (25) 125 Value Destroyed (386) 386 Prototype IDs (0) 0 Alien Tech Used (0) 0 Bonus (0) 0 TOTAL SCORE: 2111 Bonus ------- None Cogmind --------- Core Integrity 550/550 Matter 14/300 Energy 100/100 System Corruption 0% Temperature Cool (0) Movement Rolling (95) Location -8/Materials Parts ------- > --- POWER (1) -------- (None) > --- PROPULSION (4) --- Wheel Subdweller Monowheel > --- UTILITY (2) ------ Disposable Heat Sink Medium Storage Unit > --- WEAPON (4) ------- Light Cannon > --- INVENTORY (10) --- Wheel Wheel Wheel Compact Wheel High-capacity Matter Pod (0) High-capacity Matter Pod (0) Signal Interpreter Light Cannon Light Cannon Light Cannon Peak State ------------ > --- POWER ------------ Ion Engine > --- PROPULSION ------- Wheel Subdweller Monowheel > --- UTILITY ---------- Disposable Heat Sink Medium Storage Unit > --- WEAPON ----------- Light Cannon Light Cannon > --- INVENTORY -------- Wheel Wheel Wheel Compact Wheel High-capacity Matter Pod High-capacity Matter Pod Signal Interpreter Light Cannon Light Cannon Grenade Launcher [Rating: 10] Favorites ----------- Power Ion Engine Engine Ion Engine Propulsion Wheel Wheel Wheel Utility Medium Storage Unit Device Disposable Heat Sink Storage Medium Storage Unit Processor Targeting Computer Weapon Light Cannon Energy Gun Medium Laser Ballistic Gun Light Assault Rifle Ballistic Cannon Light Cannon Launcher Grenade Launcher Impact Weapon Hammer Build | -11 -10 -10 -8 ------- Run | Yrd Mat Sub Mat Slots Evolved 4 | . . . 4 Power . | . . . . Propulsion 2 | . . . 2 Utility . | . . . . Weapon 2 | . . . 2 Parts Attached 25 | 6 16 3 . Power 2 | 1 . 1 . Engine 2 | 1 . 1 . Core . | . . . . Reactor . | . . . . Propulsion 5 | 2 2 1 . Treads . | . . . . Leg . | . . . . Wheel 5 | 2 2 1 . Hover . | . . . . Flight . | . . . . Utility 6 | 1 4 1 . Device 2 | . 1 1 . Storage 3 | 1 2 . . Processor 1 | . 1 . . Hackware . | . . . . Protection . | . . . . Artifact . | . . . . Weapon 12 | 2 10 . . Energy Gun 4 | 2 2 . . Energy Cannon . | . . . . Ballistic Gun 3 | . 3 . . Ballistic Cannon 3 | . 3 . . Launcher 1 | . 1 . . Special Weapon . | . . . . Impact Weapon 1 | . 1 . . Slashing Weapon . | . . . . Piercing Weapon . | . . . . Special Melee Weapon . | . . . . Unidentified Prototypes . | . . . . Parts Lost 4 | . . 4 . Power 2 | . . 2 . Propulsion . | . . . . Utility 1 | . . 1 . Weapon 1 | . . 1 . Highest Loss Streak 2 | . . 2 . To Critical Strikes . | . . . . Average Backups 8 | . 8 9 10 Power . | . 1 . . Propulsion 1 | . 1 3 4 Utility 2 | . 1 3 3 Weapon 3 | . 3 3 3 Tool/Special . | . . . . Unused Backups 10 | . 3 . 7 Power . | . . . . Propulsion 4 | . 1 . 3 Utility 5 | . 2 . 3 Weapon 1 | . . . 1 Tool/Special . | . . . . Average Slot Usage (%) 95 | . 95 96 45 Engine 13 | . 14 13 . Wheel 27 | . 28 28 18 Device 1 | . . 2 9 Storage 15 | . 15 14 9 Processor 8 | . 7 9 . Energy Gun 4 | . 5 . . Ballistic Gun 2 | . 3 . . Ballistic Cannon 20 | . 18 26 9 Peak Build Rating 10 | 6 8 10 8 Average Rating 7 | 4 7 8 8 On Entrance 5 | . 6 8 8 Avg Prop Armor Cover (%) . | . . . . Naked Turns . | . . . . Heaviest Build 22 | 13 21 22 14 Greatest Support 30 | 20 26 30 30 Greatest Overweight (x) . | . . . . Average Overweight (x) . | . . . . Largest Inventory Capacity 10 | 8 10 10 10 Average Capacity 9 | 6 8 10 10 Most Carried 10 | 2 10 10 10 Average Carried 8 | . 8 9 10 Final Capacity 10 | 8 10 10 10 Final Carried 10 | 2 10 10 10 Class Distribution -------------------- 100% | Mutant Dominant Class ---------------- Mutant | -10/Materials Mutant | -10/Subcaves Mutant | -8/Materials Resources | -11 -10 -10 -8 ----------- Run | Yrd Mat Sub Mat Matter Collected 542 | 234 270 38 . Remotely . | . . . . Salvage Created 470 | . 410 60 . Parts 40 | . 38 2 . Haulers Intercepted . | . . . . Recyclers Shooed 2 | . 2 . . Parts Field Recycled . | . . . . Retrieved Matter . | . . . . Parts Self-Destructed 5 | . . 5 . Prevented . | . . . . Parts Restored . | . . . . Kills | -11 -10 -10 -8 ------- Run | Yrd Mat Sub Mat Combat Hostiles Destroyed 14 | . 11 3 . Guns 4 | . 4 . . Cannons 2 | . . 2 . AOE 8 | . 7 1 . Classes Destroyed 8 | . 7 1 . Worker 1 | . 1 . . Builder 3 | . 3 . . Recycler 3 | . 3 . . Operator 1 | . 1 . . Watcher 3 | . 3 . . Swarmer 9 | . 9 . . Grunt 2 | . 2 . . Subdweller 3 | . . 3 . Best Kill Streak 6 | . 6 2 . Combat Bots Only 5 | . 5 2 . Max Kills in Single Turn 3 | . 3 1 . Gunslinging . | . . . . Exploded 3 | . 3 1 . Melee . | . . . . Uniques/NPCs Destroyed . | . . . . Combat | -11 -10 -10 -8 -------- Run | Yrd Mat Sub Mat Hostile Shots Fired 89 | . 56 33 . Missed 31 | . 22 9 . Hits 58 | . 34 24 . Projectile 58 | . 34 24 . Critical Strikes 2 | . . 2 . Damage Taken 856 | . 336 520 . Core 193 | . 93 100 . Absorbed by Shields . | . . . . Core Remaining (%) 61 | 100 . 22 . Volleys Fired 74 | 1 58 15 . Largest 2 | 2 2 2 . Hottest 90 | 90 90 60 . Shots Fired 112 | 2 88 22 . Gun 50 | 2 48 . . Cannon 51 | . 36 15 . Launcher 11 | . 4 7 . Special . | . . . . Kinetic 75 | . 60 15 . Thermal 26 | 2 24 . . Explosive 11 | . 4 7 . Electromagnetic . | . . . . Robot Hit Streak 7 | 1 6 7 . Robot Miss Streak 4 | 1 4 2 . Penetration Max . | . . . . Secondary Targets . | . . . . Shots Hit Robots 63 | 1 49 13 . Core Hits 34 | . 25 9 . Critical Kills . | . . . . Critical Parts Destroyed . | . . . . Critical Strikes 6 | . 5 1 . Burn 4 | . 4 . . Blast 2 | . 1 1 . Melee Attacks 1 | . 1 . . Impact 1 | . 1 . . Slashing . | . . . . Piercing . | . . . . Sneak Attacks . | . . . . Combat Hostiles . | . . . . Follow-up Attacks . | . . . . Damage Inflicted 1500 | 12 1076 412 . Guns 290 | 12 278 . . Cannons 484 | . 388 96 . Explosions 726 | . 410 316 . Melee . | . . . . Ramming . | . . . . Kinetic 591 | . 495 96 . Thermal 183 | 12 171 . . Explosive 726 | . 410 316 . Electromagnetic . | . . . . Impact . | . . . . Slashing . | . . . . Piercing . | . . . . Highest Corruption . | . . . . Average Corruption . | . . . . Corruption Purged . | . . . . Corruption Blocked . | . . . . Overload Shots . | . . . . Overflow Damage 12 | . 12 . . Projectiles 4 | . 4 . . Explosions 8 | . 8 . . Melee . | . . . . Knockbacks 3 | . 2 1 . Impact . | . . . . Kinetic 3 | . 2 1 . Secondary . | . . . . Self-Inflicted Damage 49 | . 49 . . Shots 2 | . 2 . . Rammed . | . . . . Targets Rammed . | . . . . Kicked . | . . . . Crushed . | . . . . Highest Temperature 154 | 30 154 . . Average Temperature 60 | 17 62 . . Received Heat Transfer 174 | . 42 132 . Siege Activations . | . . . . Martial Activations . | . . . . Shielding Activations . | . . . . Robots Disrupted . | . . . . Combat Hostiles . | . . . . Robots Corrupted . | . . . . Combat Hostiles . | . . . . Parts Fried . | . . . . Impact Corruptions . | . . . . Robots Melted . | . . . . Combat Hostiles . | . . . . Parts Melted 3 | . 3 . . Heat Transferred 839 | 37 802 . . Parts Sabotaged . | . . . . Parts Stolen . | . . . . Parts Stripped . | . . . . Power Chain Reactions . | . . . . Alert | -11 -10 -10 -8 ------- Run | Yrd Mat Sub Mat Maximum Alert Level 1 | . 1 . . Low Security (%) 92 | 100 92 . 100 Level 1 7 | . 7 . . Level 2 . | . . . . Level 3 . | . . . . Level 4 . | . . . . Level 5 . | . . . . High Security . | . . . . Max Security . | . . . . Peak Influence 225 | . 225 . . Initial . | . . . . Average 113 | . 120 . . Influence Increases 422 | . 422 . . Destroy 0b10 Robot/C 220 | . 220 . . Destroy 0b10 Robot/NC 55 | . 55 . . Destroy Leader 36 | . 36 . . Disable Machine 15 | . 15 . . Destroy Structure 21 | . 21 . . Partial Spotted 15 | . 15 . . Lose Combat Pursuer 60 | . 60 . . Influence Decreases 422 | . 306 116 . Entered New Map 56 | . . 56 . Time Decay 366 | . 306 60 . Squads Dispatched . | . . . . Investigation . | . . . . Extermination . | . . . . Reinforcement . | . . . . Assault . | . . . . Garrison . | . . . . Intercept . | . . . . Searches Triggered . | . . . . Construction Impeded . | . . . . Haulers Reinforced . | . . . . Active Scanning Responses . | . . . . Cargo Convoy Interrupts . | . . . . Stealth | -11 -10 -10 -8 --------- Run | Yrd Mat Sub Mat Distress Signals 2 | . 2 . . Communications Jammed . | . . . . Distress Signals . | . . . . Times Spotted 28 | . 23 5 . Peak Tracking Total 6 | . 6 2 . Tactical Retreats 2 | . 2 . . Traps | -11 -10 -10 -8 ------- Run | Yrd Mat Sub Mat Traps Triggered . | . . . . Indirectly . | . . . . Trap Hack Attempts . | . . . . Triggered . | . . . . Disarmed . | . . . . Reprogrammed . | . . . . Reused . | . . . . Traps Extracted . | . . . . Installed . | . . . . Triggered . | . . . . Machines | -11 -10 -10 -8 ---------- Run | Yrd Mat Sub Mat Machines Disabled 1 | . 1 . . Max in Single Turn 1 | . 1 . . Machines Repaired . | . . . . Machines Dismantled . | . . . . Machines Sabotaged . | . . . . Overloaded Fab Kills . | . . . . Hacking | -11 -10 -10 -8 --------- Run | Yrd Mat Sub Mat Machines Accessed . | . . . . Terminals . | . . . . Fabricators . | . . . . Repair Stations . | . . . . Recycling Units . | . . . . Scanalyzers . | . . . . Garrison Access . | . . . . Total Hacks . | . . . . Successful . | . . . . Failed . | . . . . Catastrophic . | . . . . Database Lockouts . | . . . . Manual . | . . . . Terminals . | . . . . Fabricators . | . . . . Repair Stations . | . . . . Recycling Units . | . . . . Scanalyzers . | . . . . Garrison Access . | . . . . Terminal Hacks . | . . . . Fabricator Hacks . | . . . . Repair Station Hacks . | . . . . Recycling Unit Hacks . | . . . . Scanalyzer . | . . . . Garrison Access Hacks . | . . . . Unauthorized Hacks . | . . . . Terminals . | . . . . Fabricators . | . . . . Repair Stations . | . . . . Recycling Units . | . . . . Scanalyzers . | . . . . Garrison Access . | . . . . Data Cores Recovered . | . . . . Used . | . . . . Hacking Detections . | . . . . Full Trace Events . | . . . . Feedback Events . | . . . . Feedback Blocked . | . . . . Robot Schematics Acquired . | . . . . Robots Built . | . . . . Authchips . | . . . . Time . | . . . . Total Robot Build Rating . | . . . . Part Schematics Acquired . | . . . . Parts Built . | . . . . Authchips . | . . . . Time . | . . . . Total Part Build Rating . | . . . . Part Studies Acquired . | . . . . Parts Repaired . | . . . . Time . | . . . . Parts Recycled . | . . . . Recycled Matter . | . . . . Retrieved Matter . | . . . . Retrieved Components . | . . . . Parts Scanalyzed . | . . . . Part Schematics Acquired . | . . . . Parts Damaged . | . . . . Bothacking | -11 -10 -10 -8 ------------ Run | Yrd Mat Sub Mat Used RIF Installer . | . . . . Robots Hacked . | . . . . Non-combat . | . . . . Combat . | . . . . Robot Hacks Applied . | . . . . Relay Couplers Released . | . . . . Fabnet Peak Effective % . | . . . . Robots Rewired . | . . . . Allies Hacked . | . . . . Hacks Repelled . | . . . . Allies | -11 -10 -10 -8 -------- Run | Yrd Mat Sub Mat Total Allies . | . . . . Largest Group . | . . . . Highest-Rated Group . | . . . . Highest-Rated Ally . | . . . . Total Orders . | . . . . Ally Attacks . | . . . . Total Damage . | . . . . Kills . | . . . . Allies Corrupted . | . . . . Allies Melted . | . . . . Intel | -11 -10 -10 -8 ------- Run | Yrd Mat Sub Mat Active Infowar (turns) . | . . . . Robot Analysis Total . | . . . . Derelict Logs Recovered . | . . . . Drone Launches . | . . . . Drone Recoveries . | . . . . Exploration | -11 -10 -10 -8 ------------- Run | Yrd Mat Sub Mat Turns Passed 1132 | 50 787 293 2 Spaces Moved 975 | 40 668 265 2 Core 2 | 2 . . . Treads . | . . . . Legs . | . . . . Wheels 973 | 38 668 265 2 Hover . | . . . . Flight . | . . . . Fastest Speed 50 | 50 80 90 95 Average Speed 88 | 78 87 91 95 Slowest Speed 95 | 80 90 95 95 Overloaded Moves . | . . . . Propulsion Burnouts . | . . . . Robots Hopped . | . . . . Potential Cave-ins . | . . . . Cave-ins Triggered . | . . . . Exploration Rate (%) 28 | 3 88 19 2 Regions Visited 3 Branch Regions 1 Pre-discovered Areas 1 | . . 1 . Known Exits Taken . | . . . . Unknown Exits Taken 3 | 1 1 1 . Scrap Searched . | . . . . Spaces Dug . | . . . . Terrain Destroyed 56 | . 20 36 . Melee . | . . . . Projectile . | . . . . AOE 56 | . 20 36 . Terrain Rammed . | . . . . Walls Destroyed . | . . . . Machines Disabled . | . . . . Actions | -11 -10 -10 -8 --------- Run | Yrd Mat Sub Mat Total 1137 | 53 790 292 2 Wait 21 | 5 9 7 . Move 972 | 39 667 264 2 Hop . | . . . . Pick Up 20 | 2 18 . . Fast Attach 12 | 6 5 1 . Attach 3 | . 2 1 . Detach . | . . . . Swap 16 | . 12 4 . Drop 18 | . 18 . . Fire 74 | 1 58 15 . Melee 1 | . 1 . . Ram . | . . . . Kick . | . . . . Crush . | . . . . Escape Stasis . | . . . . Rewire . | . . . . Trap . | . . . . Miscellaneous . | . . . . Route ------- -11/Scrapyard -10/Materials (discovered 5 exits: [*Mat x2] / [*Min x2] / [*Sub]) -10/Subcaves -8/Materials History --------- Turn | Location | Event 10 | -11/Scrapyard | Discovered new exit (range 15) 51 | -11/Scrapyard | Entered Materials 176 | -10/Materials | Discovered new exit (range 13) 275 | -10/Materials | Discovered new exit (range 13) 355 | -10/Materials | Build established: Mutant 416 | -10/Materials | Discovered new exit (range 7) 764 | -10/Materials | Discovered new exit (range 10) 822 | -10/Materials | Discovered new exit (range 15) 838 | -10/Materials | Entered Subcaves 845 | -10/Subcaves | Learned location of Zion (-6) 845 | -10/Subcaves | Met a Zionite searching for "candidates" 995 | -10/Subcaves | Ambushed by Subdwellers from Twisted Machinery 1040 | -10/Subcaves | Core integrity fell below 50% 1112 | -10/Subcaves | Discovered new exit (range 12) 1131 | -10/Subcaves | Entered Materials 1131 | -8/Materials | Evolved 4 slots: Propulsion x2, Weapon x2 1133 | -8/Materials | Self-destructed Last Messages --------------- 01050_ ZK-4MQ(R) affixes Scrap Shield Fragment to Scrap Shield. 01051_ Subatomizers dissect the Sub. Monowheel. 01052_ ZK-4MQ(R) Sub. Monowheel blasted off. 01055_ ZK-4MQ(R) destroyed. 01057_ The unstable cave ceiling collapses. 01066_ Acquired 5 matter. 01070_ The unstable cave ceiling collapses. 01070_ Acquired Disposable Heat Sink. 01082_ Acquired 28 matter. 01083_ Acquired 2 matter. 01087_ Acquired 3 matter. 01112_ EXIT=FOUND 01114_ BH-6W1(R) knocked back. 01118_ Ion Engine destroyed. 01130_ The unstable cave ceiling collapses. 01131_ Grenade Launcher destroyed. PARAMETERS=PROPULSION+2,WEAPON+2 LOCATION=UNKNOWN GOAL=ESCAPE Map ----- +----------------------------------------------------+ | ???????????????????????????????????? | | ???????????????????????????????????? | | ???????????????????????????????????? | | ???????????????????????????????????? | | ???????????????????????????????????? | | ???????????????????????????????????? | | ???????????????????????????????????? | | ???????????????????????????????????? | | ???????????????????????????????????? | | ???????????????????????????????????? | | ???????????????????????????????????? | | ??????????????? ???????????????????? | | ?????????????? ????????????????? | | ?????????????? ???????????????? | | ?????????????? ""??????????????? | | ?????????????? """?????????????? | | ????????????? """ ???????????? | | ????????????? ???????????? | | ????????????? ??????????? | | ????????????? ??????????? | | ???????????? ???????????? | | ???????????? ????????????? | | ???????????? "T"?????????????? | | ???????##### """ ????????? | | ???????# ????????? | | ???????# @ ????????? | | ???????# #????????????? | | ???????######+##### #????????????? | | ???????????????????????????????????? | | ???????????????????????????????????? | | ???????????????????????????????????? | | ???????????????????????????????????? | | ???????????????????????????????????? | | ???????????????????????????????????? | | ???????????????????????????????????? | | ???????????????????????????????????? | | ???????????????????????????????????? | | ???????????????????????????????????? | | ???????????????????????????????????? | | ???????????????????????????????????? | | ???????????????????????????????????? | | ???????????????????????????????????? | | ???????????????????????????????????? | | ???????????????????????????????????? | | ???????????????????????????????????? | | ???????????????????????????????????? | | ???????????????????????????????????? | | ???????????????????????????????????? | | ???????????????????????????????????? | | ???????????????????????????????????? | +----------------------------------------------------+ Best States ------------- Heat Dissipation 35 Coolant Potential 50 Energy Generation 10 Energy Capacity 250 Matter Stores 275 Matter Capacity 450 Sight Range 16 Terrain Scan Density 10 Evasion (%) 44 Targeting Accuracy 5 Item Schematics ----------------- None Robot Schematics ------------------ None Fabricated ------------ Nothing Repaired ---------- Nothing Studied --------- None Alien Tech Used ----------------- None Achievements -------------- None Challenges ------------ None Game ------ Seed ProjectionBlinkCoupler Manual? 0 Play Time 00:08:39 Cumulative 96.9 hours Start 2026.02.21 @ 17:34:47 End 2026.02.21 @ 17:43:20 Sessions 1 Manual Loads 0 Difficulty Rogue Special Mode None Game No. 152 Rogue 152 Adventurer 0 Explorer 0 Win Type - Total 0 Types 0/0/0/0/0/0/0/0/0/0 Lore% 19 Gallery% 38 Achievement% 28 Wizard Run 0 Options --------- Layout 1 ASCII 0 Keyboard 0 Movement Mouse Keybinds 0 Fullscreen 2 Font 24/Smallcaps Map View 50x35 Zoom Use 37% Tactical HUD 1 Map Filters NONE Filters NONE Steam 1 RUN: af4d457a-54c6-4460-951d-1afb05a10cb4